[Event "Open NK Rapid 2025"]
[Site "Helmond, Netherlands"]
[Date "2025.05.03"]
[Round "7.9"]
[White "Grooten, Tommy"]
[Black "Cernov, Henrik"]
[Result "1/2-1/2"]
[TimeControl "15+5"]
[WhiteFideId "1068806"]
[BlackFideId "16258312"]
[WhiteElo "2027"]
[BlackElo "2291"]

1. Nf3 {[%clk 00:15:09]} Nf6 {[%clk 00:15:07]} {[%emt 00:00:04]} 2. c4 {[%clk
00:15:12]} {[%emt 00:00:02]} Nc6 {[%clk 00:15:11]} 3. d4 {[%clk 00:15:15]}
{[%emt 00:00:03]} e6 {[%clk 00:15:15]} {[%emt 00:00:01]} 4. a3 {[%clk
00:15:18]} {[%emt 00:00:01]} d6 {[%clk 00:15:18]} 5. g3 {[%clk 00:15:08]}
{[%emt 00:00:16]} g6 {[%clk 00:15:22]} {[%emt 00:00:02]} 6. Bg2 {[%clk
00:15:11]} {[%emt 00:00:01]} Bg7 {[%clk 00:15:26]} {[%emt 00:00:01]} 7. O-O
{[%clk 00:15:15]} {[%emt 00:00:01]} O-O {[%emt 00:00:05]} 8. Nc3 {[%emt
00:00:04]} Re8 {[%clk 00:14:48]} {[%emt 00:00:44]} 9. Re1 {[%clk 00:14:34]}
{[%emt 00:00:46]} e5 {[%clk 00:13:26]} {[%emt 00:01:27]} 10. dxe5 {[%clk
00:14:37]} {[%emt 00:00:02]} Nxe5 {[%clk 00:13:18]} {[%emt 00:00:14]} 11. Nxe5
{[%clk 00:14:41]} {[%emt 00:00:01]} Rxe5 {[%clk 00:13:22]} 12. e4 {[%clk
00:14:21]} {[%emt 00:00:24]} Re8 {[%clk 00:13:19]} {[%emt 00:00:06]} 13. Bg5
{[%clk 00:14:15]} {[%emt 00:00:13]} h6 {[%clk 00:13:10]} {[%emt 00:00:14]} 14.
Bf4 {[%clk 00:13:48]} {[%emt 00:00:32]} Be6 {[%clk 00:13:03]} {[%emt 00:00:12]}
15. Nd5 {[%clk 00:12:15]} {[%emt 00:01:37]} Nd7 {[%clk 00:11:53]} {[%emt
00:01:16]} 16. Qd2 {[%clk 00:11:49]} {[%emt 00:00:31]} g5 {[%clk 00:11:56]}
{[%emt 00:00:02]} 17. Be3 {[%clk 00:11:49]} {[%emt 00:00:04]} c6 {[%clk
00:10:04]} {[%emt 00:01:58]} 18. Nc3 {[%clk 00:11:51]} {[%emt 00:00:03]} Ne5
{[%clk 00:10:08]} 19. b3 {[%clk 00:11:20]} {[%emt 00:00:36]} Qf6 {[%clk
00:10:09]} {[%emt 00:00:04]} 20. Rac1 {[%clk 00:10:21]} {[%emt 00:01:04]} Nf3+
{[%clk 00:09:44]} {[%emt 00:00:30]} 21. Bxf3 {[%clk 00:10:23]} {[%emt
00:00:02]} Qxf3 {[%clk 00:09:48]} {[%emt 00:00:01]} 22. Qe2 {[%clk 00:10:23]}
{[%emt 00:00:06]} Bg4 {[%clk 00:08:48]} {[%emt 00:01:05]} 23. Qxf3 {[%clk
00:10:20]} {[%emt 00:00:09]} Bxf3 {[%clk 00:08:52]} 24. Bd2 {[%clk 00:10:15]}
{[%emt 00:00:09]} Re6 {[%clk 00:08:16]} {[%emt 00:00:41]} 25. Re3 {[%clk
00:09:37]} {[%emt 00:00:42]} Bxc3 {[%clk 00:07:25]} {[%emt 00:00:57]} 26. Bxc3
{[%clk 00:09:32]} {[%emt 00:00:09]} Bxe4 {[%clk 00:07:28]} {[%emt 00:00:03]} 27.
f3 {[%clk 00:08:55]} {[%emt 00:00:41]} Bf5 {[%clk 00:07:04]} {[%emt 00:00:29]}
28. Rce1 {[%clk 00:08:49]} {[%emt 00:00:11]} Rae8 {[%clk 00:05:58]} {[%emt
00:01:12]} 29. Kf2 {[%clk 00:08:41]} {[%emt 00:00:12]} Bc2 {[%clk 00:04:33]}
{[%emt 00:01:31]} 30. b4 {[%clk 00:08:41]} {[%emt 00:00:05]} Bb3 {[%clk
00:04:32]} {[%emt 00:00:05]} 31. Rxe6 {[%clk 00:08:37]} {[%emt 00:00:09]} Rxe6
{[%clk 00:04:20]} {[%emt 00:00:18]} 32. Rxe6 {[%clk 00:08:41]} {[%emt
00:00:01]} fxe6 {[%clk 00:04:24]} 33. c5 {[%clk 00:08:45]} {[%emt 00:00:01]}
dxc5 {[%clk 00:04:10]} {[%emt 00:00:19]} 34. bxc5 {[%clk 00:08:49]} {[%emt
00:00:01]} Kf7 {[%clk 00:03:58]} {[%emt 00:00:18]} 35. Ke3 {[%clk 00:08:30]}
{[%emt 00:00:22]} Bd5 {[%clk 00:03:55]} {[%emt 00:00:09]} 36. f4 {[%clk
00:08:22]} {[%emt 00:00:13]} Kg6 {[%clk 00:03:42]} {[%emt 00:00:18]} 37. fxg5
{[%clk 00:07:54]} {[%emt 00:00:32]} hxg5 {[%clk 00:03:33]} {[%emt 00:00:15]} 38.
h4 {[%clk 00:07:39]} {[%emt 00:00:19]} 1/2-1/2

[Event "Open NK Rapid 2025"]
[Site "Helmond, Netherlands"]
[Date "2025.05.03"]
[Round "7.10"]
[White "Grooten, Herman"]
[Black "Beeke, Bob"]
[Result "0-1"]
[TimeControl "15+5"]
[WhiteFideId "1000330"]
[BlackFideId "1011634"]
[WhiteElo "2219"]
[BlackElo "2217"]

1. d4 {[%clk 00:15:09]} d5 {[%clk 00:15:09]} {[%emt 00:00:02]} 2. c4 {[%clk
00:15:13]} e6 {[%clk 00:15:13]} 3. Nf3 {[%clk 00:15:16]} {[%emt 00:00:01]} Nf6
{[%clk 00:15:17]} {[%emt 00:00:02]} 4. Nc3 {[%clk 00:15:20]} {[%emt 00:00:01]}
dxc4 {[%clk 00:15:20]} {[%emt 00:00:02]} 5. e3 {[%clk 00:15:23]} {[%emt
00:00:02]} a6 {[%clk 00:15:23]} {[%emt 00:00:02]} 6. a4 {[%clk 00:15:18]}
{[%emt 00:00:10]} c5 {[%clk 00:15:20]} {[%emt 00:00:09]} 7. Bxc4 {[%clk
00:15:19]} {[%emt 00:00:03]} Nc6 {[%clk 00:15:20]} {[%emt 00:00:04]} 8. O-O
{[%clk 00:15:21]} {[%emt 00:00:04]} Be7 {[%clk 00:15:08]} {[%emt 00:00:17]} 9.
Qe2 {[%clk 00:15:09]} {[%emt 00:00:16]} cxd4 {[%clk 00:14:42]} {[%emt
00:00:33]} 10. Rd1 {[%clk 00:15:11]} {[%emt 00:00:02]} O-O {[%clk 00:14:11]}
{[%emt 00:00:36]} 11. exd4 {[%clk 00:15:13]} {[%emt 00:00:02]} Qa5 {[%clk
00:14:02]} {[%emt 00:00:15]} 12. Bg5 {[%clk 00:14:21]} {[%emt 00:00:57]} Rd8
{[%clk 00:13:42]} {[%emt 00:00:25]} 13. Qe3 {[%clk 00:12:38]} {[%emt 00:01:48]}
Nb4 {[%clk 00:11:51]} {[%emt 00:01:56]} 14. Qe5 {[%clk 00:11:39]} {[%emt
00:01:04]} Nc6 {[%clk 00:10:56]} {[%emt 00:01:00]} 15. Qe2 {[%clk 00:10:14]}
{[%emt 00:01:30]} Nxd4 {[%clk 00:10:29]} {[%emt 00:00:32]} 16. Rxd4 {[%clk
00:08:18]} {[%emt 00:02:01]} Rxd4 {[%clk 00:10:30]} {[%emt 00:00:05]} 17. Nxd4
{[%clk 00:05:43]} {[%emt 00:02:39]} Qxg5 {[%clk 00:10:33]} {[%emt 00:00:02]} 18.
Rd1 {[%clk 00:05:47]} {[%emt 00:00:01]} Bd7 {[%clk 00:09:50]} {[%emt 00:00:48]}
19. Nf3 {[%clk 00:05:41]} {[%emt 00:00:11]} Qc5 {[%clk 00:09:31]} {[%emt
00:00:23]} 20. Ne5 {[%clk 00:05:33]} {[%emt 00:00:14]} Be8 {[%clk 00:09:24]}
{[%emt 00:00:12]} 21. g4 {[%clk 00:04:41]} {[%emt 00:00:57]} Rd8 {[%clk
00:09:02]} {[%emt 00:00:25]} 22. Rxd8 {[%clk 00:03:56]} {[%emt 00:00:52]} Bxd8
{[%clk 00:09:06]} {[%emt 00:00:01]} 23. Kg2 {[%clk 00:03:05]} {[%emt 00:00:56]}
Nd7 {[%clk 00:08:27]} {[%emt 00:00:44]} 24. Nf3 {[%clk 00:02:59]} {[%emt
00:00:11]} Nb6 {[%clk 00:08:25]} {[%emt 00:00:07]} 25. Bd3 {[%clk 00:02:54]}
{[%emt 00:00:09]} Bc6 {[%clk 00:08:11]} {[%emt 00:00:19]} 26. Ne4 {[%clk
00:02:36]} {[%emt 00:00:23]} Qb4 {[%clk 00:08:03]} {[%emt 00:00:14]} 27. Ne5
{[%clk 00:02:10]} {[%emt 00:00:31]} Qxa4 {[%clk 00:06:56]} {[%emt 00:01:12]} 28.
f3 {[%clk 00:01:33]} {[%emt 00:00:42]} h6 {[%clk 00:06:41]} {[%emt 00:00:20]}
29. Nd6 {[%clk 00:01:36]} {[%emt 00:00:01]} Nd5 {[%clk 00:06:00]} {[%emt
00:00:47]} 30. Qd2 {[%clk 00:01:07]} {[%emt 00:00:34]} Qf4 {[%clk 00:05:55]}
{[%emt 00:00:10]} 31. Qxf4 {[%clk 00:00:43]} {[%emt 00:00:29]} Nxf4+ {[%clk
00:05:59]} 32. Kg3 {[%clk 00:00:48]} {[%emt 00:00:01]} Nxd3 {[%clk 00:06:02]}
{[%emt 00:00:01]} 33. Nxd3 {[%clk 00:00:52]} Bc7 {[%clk 00:06:07]} 0-1

[Event "Open NK Rapid 2025"]
[Site "Helmond, Netherlands"]
[Date "2025.05.03"]
[Round "7.11"]
[White "Baselmans, Luuk"]
[Black "Landman, Renzo"]
[Result "0-1"]
[TimeControl "15+5"]
[WhiteFideId "1051008"]
[BlackFideId "40106306"]
[WhiteElo "2405"]
[BlackElo "1975"]

1. e4 {[%clk 00:15:06]} {[%emt 00:00:04]} e5 {[%clk 00:15:06]} {[%emt
00:00:04]} 2. Nf3 {[%clk 00:15:08]} {[%emt 00:00:03]} Nc6 {[%clk 00:15:07]}
{[%emt 00:00:03]} 3. d4 {[%clk 00:15:04]} {[%emt 00:00:09]} exd4 {[%clk
00:15:09]} {[%emt 00:00:04]} 4. Bc4 {[%clk 00:15:08]} {[%emt 00:00:01]} Nf6
{[%clk 00:15:11]} {[%emt 00:00:03]} 5. e5 {[%clk 00:15:10]} {[%emt 00:00:02]}
d5 {[%clk 00:15:09]} {[%emt 00:00:08]} 6. Bb5 {[%clk 00:15:13]} {[%emt
00:00:02]} Ne4 {[%clk 00:15:11]} {[%emt 00:00:03]} 7. Nxd4 {[%clk 00:15:13]}
{[%emt 00:00:04]} Bd7 {[%clk 00:15:14]} {[%emt 00:00:03]} 8. Bxc6 {[%clk
00:15:15]} {[%emt 00:00:03]} bxc6 {[%clk 00:15:16]} {[%emt 00:00:03]} 9. O-O
{[%clk 00:15:14]} {[%emt 00:00:06]} Bc5 {[%clk 00:15:13]} {[%emt 00:00:08]} 10.
f3 {[%clk 00:15:13]} {[%emt 00:00:06]} Ng5 {[%clk 00:15:15]} {[%emt 00:00:03]}
11. f4 {[%clk 00:15:16]} {[%emt 00:00:02]} Ne4 {[%clk 00:15:18]} {[%emt
00:00:02]} 12. Be3 {[%clk 00:15:14]} {[%emt 00:00:06]} Bb6 {[%clk 00:15:09]}
{[%emt 00:00:15]} 13. Nd2 {[%clk 00:15:11]} {[%emt 00:00:08]} Nxd2 {[%clk
00:15:02]} {[%emt 00:00:12]} 14. Qxd2 {[%clk 00:15:14]} {[%emt 00:00:01]} c5
{[%clk 00:12:39]} {[%emt 00:02:29]} 15. Nf3 {[%clk 00:15:15]} {[%emt 00:00:04]}
c6 {[%clk 00:10:52]} {[%emt 00:01:52]} 16. c4 {[%clk 00:13:08]} {[%emt
00:02:12]} Bf5 {[%clk 00:08:33]} {[%emt 00:02:24]} 17. Qf2 {[%clk 00:09:15]}
{[%emt 00:03:57]} d4 {[%clk 00:08:00]} {[%emt 00:00:39]} 18. Bd2 {[%clk
00:09:14]} {[%emt 00:00:06]} O-O {[%clk 00:05:06]} {[%emt 00:02:59]} 19. Nh4
{[%clk 00:07:15]} {[%emt 00:02:04]} Qd7 {[%clk 00:04:22]} {[%emt 00:00:48]} 20.
h3 {[%clk 00:06:31]} {[%emt 00:00:50]} f6 {[%clk 00:03:50]} {[%emt 00:00:37]}
21. Rfe1 {[%clk 00:05:33]} {[%emt 00:01:03]} Rae8 {[%clk 00:02:31]} {[%emt
00:01:24]} 22. exf6 {[%clk 00:05:23]} {[%emt 00:00:15]} Rxe1+ {[%clk 00:02:29]}
{[%emt 00:00:07]} 23. Rxe1 {[%clk 00:05:17]} {[%emt 00:00:11]} Rxf6 {[%clk
00:02:28]} {[%emt 00:00:06]} 24. Re5 {[%clk 00:04:43]} {[%emt 00:00:39]} Bd3
{[%clk 00:01:13]} {[%emt 00:01:20]} 25. b3 {[%clk 00:04:36]} {[%emt 00:00:12]}
Re6 {[%clk 00:00:57]} {[%emt 00:00:20]} 26. Qe1 {[%clk 00:03:01]} {[%emt
00:01:40]} Rxe5 {[%clk 00:00:47]} {[%emt 00:00:16]} 27. Qxe5 {[%clk 00:03:04]}
{[%emt 00:00:02]} Bb1 {[%clk 00:00:24]} {[%emt 00:00:28]} 28. f5 {[%clk
00:01:35]} {[%emt 00:01:34]} Qf7 {[%clk 00:00:25]} {[%emt 00:00:03]} 29. a4
{[%clk 00:01:00]} {[%emt 00:00:41]} Bc2 {[%clk 00:00:17]} {[%emt 00:00:13]} 30.
Bg5 {[%clk 00:00:33]} {[%emt 00:00:32]} Bxb3 {[%clk 00:00:08]} {[%emt
00:00:15]} 31. Be7 {[%clk 00:00:26]} {[%emt 00:00:11]} h6 {[%clk 00:00:06]}
{[%emt 00:00:06]} 32. Ng6 {[%clk 00:00:21]} {[%emt 00:00:11]} Kh7 {[%clk
00:00:08]} {[%emt 00:00:03]} 33. Nf8+ {[%clk 00:00:15]} {[%emt 00:00:11]} Kg8
{[%clk 00:00:11]} {[%emt 00:00:01]} 34. Ng6 {[%clk 00:00:15]} {[%emt 00:00:06]}
Kh7 {[%clk 00:00:15]} {[%emt 00:00:01]} 35. g4 {[%clk 00:00:14]} {[%emt
00:00:06]} Bxc4 {[%clk 00:00:17]} {[%emt 00:00:03]} 36. Nf8+ {[%clk 00:00:15]}
{[%emt 00:00:05]} Kg8 {[%clk 00:00:20]} {[%emt 00:00:02]} 37. Ng6 {[%clk
00:00:17]} {[%emt 00:00:02]} Kh7 {[%clk 00:00:24]} 38. Qb8 {[%clk 00:00:20]}
{[%emt 00:00:02]} Qg8 {[%clk 00:00:19]} {[%emt 00:00:10]} 39. Nf8+ {[%clk
00:00:17]} {[%emt 00:00:08]} Kh8 {[%clk 00:00:23]} 40. Qd6 {[%clk 00:00:18]}
{[%emt 00:00:04]} d3 {[%clk 00:00:23]} {[%emt 00:00:05]} 41. g5 {[%clk
00:00:11]} {[%emt 00:00:11]} Qd5 {[%clk 00:00:18]} {[%emt 00:00:11]} 42. Ng6+
{[%clk 00:00:11]} {[%emt 00:00:06]} Kh7 {[%clk 00:00:22]} 43. Nf8+ {[%clk
00:00:10]} {[%emt 00:00:05]} Kg8 {[%clk 00:00:26]} 44. gxh6 {[%clk 00:00:06]}
{[%emt 00:00:09]} Qxd6 {[%clk 00:00:06]} {[%emt 00:00:26]} 45. h7+ {[%clk
00:00:09]} {[%emt 00:00:02]} Kf7 {[%clk 00:00:10]} 46. Bxd6 {[%clk 00:00:08]}
{[%emt 00:00:06]} d2 {[%clk 00:00:14]} {[%emt 00:00:02]} 47. h8=Q {[%emt
00:00:03]} d1=Q+ {[%clk 00:00:15]} {[%emt 00:00:03]} 48. Kf2 {[%clk 00:00:14]}
{[%emt 00:00:01]} Qe2+ {[%clk 00:00:13]} {[%emt 00:00:07]} 49. Kg3 {[%clk
00:00:16]} {[%emt 00:00:03]} Qe3+ {[%clk 00:00:10]} {[%emt 00:00:07]} 50. Kh4
{[%clk 00:00:18]} {[%emt 00:00:03]} Qd4+ {[%clk 00:00:07]} {[%emt 00:00:09]} 51.
Kg5 {[%clk 00:00:19]} {[%emt 00:00:05]} Qf6+ {[%clk 00:00:09]} {[%emt
00:00:02]} 52. Kg4 {[%clk 00:00:19]} {[%emt 00:00:05]} Qd4+ {[%clk 00:00:13]}
{[%emt 00:00:01]} 53. Bf4 {[%clk 00:00:18]} {[%emt 00:00:06]} Be2+ {[%clk
00:00:13]} {[%emt 00:00:05]} 54. Kg3 {[%clk 00:00:10]} {[%emt 00:00:14]} Qg1+
{[%clk 00:00:12]} {[%emt 00:00:06]} 55. Kh4 {[%clk 00:00:13]} {[%emt 00:00:01]}
Bd8+ {[%clk 00:00:11]} {[%emt 00:00:06]} 56. f6 {[%clk 00:00:15]} {[%emt
00:00:03]} Bxf6+ {[%clk 00:00:13]} {[%emt 00:00:03]} 57. Bg5 {[%clk 00:00:17]}
{[%emt 00:00:03]} Qxg5# {[%clk 00:00:15]} {[%emt 00:00:03]} 0-1

[Event "Open NK Rapid 2025"]
[Site "Helmond, Netherlands"]
[Date "2025.05.03"]
[Round "7.12"]
[White "Moskalets, Sofiia"]
[Black "Grochal, Joey"]
[Result "1/2-1/2"]
[TimeControl "15+5"]
[WhiteFideId "34144293"]
[BlackFideId "1019945"]
[WhiteElo "1938"]
[BlackElo "2261"]

1. d4 {[%clk 00:15:07]} {[%emt 00:00:03]} d5 {[%clk 00:15:03]} {[%emt
00:00:08]} 2. c4 {[%clk 00:15:09]} {[%emt 00:00:03]} c6 {[%clk 00:15:06]}
{[%emt 00:00:02]} 3. Nc3 {[%clk 00:15:12]} {[%emt 00:00:01]} Nf6 {[%clk
00:15:09]} {[%emt 00:00:02]} 4. Nf3 {[%clk 00:15:03]} {[%emt 00:00:14]} dxc4
{[%clk 00:15:02]} {[%emt 00:00:12]} 5. a4 {[%clk 00:14:55]} {[%emt 00:00:13]}
Bf5 {[%clk 00:15:04]} {[%emt 00:00:04]} 6. e3 {[%clk 00:14:37]} {[%emt
00:00:23]} e6 {[%clk 00:14:56]} {[%emt 00:00:12]} 7. Bxc4 {[%clk 00:14:36]}
{[%emt 00:00:06]} Bb4 {[%clk 00:14:54]} {[%emt 00:00:07]} 8. O-O {[%clk
00:14:31]} {[%emt 00:00:10]} Nbd7 {[%clk 00:14:35]} {[%emt 00:00:25]} 9. Bd3
{[%clk 00:13:20]} {[%emt 00:01:15]} O-O {[%clk 00:13:37]} {[%emt 00:01:03]} 10.
Bxf5 {[%clk 00:11:45]} {[%emt 00:01:40]} exf5 {[%clk 00:13:40]} {[%emt
00:00:02]} 11. Qd3 {[%clk 00:11:47]} {[%emt 00:00:04]} g6 {[%clk 00:13:18]}
{[%emt 00:00:26]} 12. b3 {[%clk 00:09:29]} {[%emt 00:02:23]} Qe7 {[%clk
00:12:57]} {[%emt 00:00:26]} 13. Bb2 {[%clk 00:09:00]} {[%emt 00:00:34]} Rfd8
{[%clk 00:12:14]} {[%emt 00:00:48]} 14. Rad1 {[%clk 00:08:31]} {[%emt
00:00:34]} Ne4 {[%clk 00:11:08]} {[%emt 00:01:11]} 15. Ne2 {[%clk 00:07:51]}
{[%emt 00:00:45]} Nb6 {[%clk 00:10:19]} {[%emt 00:00:55]} 16. Qc2 {[%clk
00:07:04]} {[%emt 00:00:51]} Nd5 {[%clk 00:10:09]} {[%emt 00:00:15]} 17. Ne5
{[%clk 00:06:18]} {[%emt 00:00:52]} Bd6 {[%clk 00:09:41]} {[%emt 00:00:34]} 18.
Nf4 {[%clk 00:06:03]} {[%emt 00:00:19]} Bc7 {[%clk 00:09:04]} {[%emt 00:00:42]}
19. Nxd5 {[%clk 00:05:54]} {[%emt 00:00:13]} cxd5 {[%clk 00:08:26]} {[%emt
00:00:43]} 20. f3 {[%clk 00:05:33]} {[%emt 00:00:27]} Ng5 {[%clk 00:08:14]}
{[%emt 00:00:17]} 21. Rfe1 {[%clk 00:05:20]} {[%emt 00:00:17]} Rac8 {[%clk
00:08:13]} {[%emt 00:00:07]} 22. Qf2 {[%clk 00:04:59]} {[%emt 00:00:25]} f6
{[%clk 00:07:25]} {[%emt 00:00:53]} 23. Nd3 {[%clk 00:05:01]} {[%emt 00:00:03]}
Re8 {[%clk 00:06:53]} {[%emt 00:00:37]} 24. Qh4 {[%clk 00:03:21]} {[%emt
00:01:45]} Bb8 {[%clk 00:06:32]} {[%emt 00:00:27]} 25. Re2 {[%clk 00:02:32]}
{[%emt 00:00:54]} Rc6 {[%clk 00:06:26]} {[%emt 00:00:11]} 26. Rde1 {[%clk
00:02:16]} {[%emt 00:00:20]} b6 {[%clk 00:06:05]} {[%emt 00:00:26]} 27. Qf2
{[%clk 00:01:02]} {[%emt 00:01:19]} Qc7 {[%clk 00:05:30]} {[%emt 00:00:41]} 28.
Qh4 {[%clk 00:00:38]} {[%emt 00:00:28]} a5 {[%clk 00:05:19]} {[%emt 00:00:16]}
29. Nf4 {[%clk 00:00:36]} {[%emt 00:00:07]} Qd7 {[%clk 00:05:00]} {[%emt
00:00:24]} 30. Qf2 {[%clk 00:00:15]} {[%emt 00:00:27]} Ne6 {[%clk 00:04:37]}
{[%emt 00:00:28]} 31. Nxe6 {[%clk 00:00:11]} {[%emt 00:00:08]} Rcxe6 {[%clk
00:04:41]} {[%emt 00:00:02]} 32. Bc1 {[%clk 00:00:08]} {[%emt 00:00:08]} Qc7
{[%clk 00:04:26]} {[%emt 00:00:19]} 33. g3 {[%clk 00:00:08]} {[%emt 00:00:05]}
Qc3 {[%clk 00:04:27]} {[%emt 00:00:05]} 34. Bd2 {[%clk 00:00:07]} {[%emt
00:00:06]} Qxb3 {[%clk 00:04:23]} {[%emt 00:00:09]} 35. e4 {[%clk 00:00:09]}
{[%emt 00:00:03]} fxe4 {[%clk 00:04:01]} {[%emt 00:00:26]} 36. fxe4 {[%clk
00:00:12]} {[%emt 00:00:02]} dxe4 {[%clk 00:04:04]} {[%emt 00:00:02]} 37. Bf4
{[%clk 00:00:08]} {[%emt 00:00:09]} Bxf4 {[%clk 00:03:34]} {[%emt 00:00:36]} 38.
Qxf4 {[%clk 00:00:12]} {[%emt 00:00:01]} Qd5 {[%clk 00:03:37]} {[%emt
00:00:02]} 39. Qe3 {[%clk 00:00:14]} {[%emt 00:00:02]} Rd6 {[%clk 00:03:34]}
{[%emt 00:00:09]} 40. Rd2 {[%clk 00:00:11]} {[%emt 00:00:08]} Qg5 {[%clk
00:03:22]} {[%emt 00:00:17]} 41. Qb3+ {[%clk 00:00:13]} {[%emt 00:00:03]} Kg7
{[%clk 00:03:21]} {[%emt 00:00:06]} 42. Rc2 {[%clk 00:00:14]} {[%emt 00:00:04]}
Re7 {[%clk 00:02:30]} {[%emt 00:00:54]} 43. Qa3 {[%clk 00:00:13]} {[%emt
00:00:08]} Qd5 {[%clk 00:02:32]} {[%emt 00:00:03]} 44. Rd2 {[%clk 00:00:13]}
{[%emt 00:00:06]} f5 {[%clk 00:02:18]} {[%emt 00:00:18]} 45. Qe3 {[%clk
00:00:12]} {[%emt 00:00:05]} Rc7 {[%clk 00:02:14]} {[%emt 00:00:09]} 46. Rb1
{[%clk 00:00:15]} {[%emt 00:00:02]} Rc4 {[%clk 00:02:05]} {[%emt 00:00:14]} 47.
Rb5 {[%clk 00:00:16]} {[%emt 00:00:04]} Rc1+ {[%clk 00:02:09]} 48. Kg2 {[%clk
00:00:18]} {[%emt 00:00:04]} Qc4 {[%clk 00:02:12]} {[%emt 00:00:02]} 49. Qf4
{[%clk 00:00:14]} {[%emt 00:00:08]} Qe6 {[%clk 00:01:24]} {[%emt 00:00:53]} 50.
Re5 {[%clk 00:00:12]} {[%emt 00:00:07]} Qf6 {[%clk 00:01:18]} {[%emt 00:00:10]}
51. Rb2 {[%clk 00:00:10]} {[%emt 00:00:09]} Rc7 {[%clk 00:01:14]} {[%emt
00:00:09]} 52. Rf2 {[%clk 00:00:08]} {[%emt 00:00:07]} Rf7 {[%clk 00:01:00]}
{[%emt 00:00:18]} 53. d5 {[%clk 00:00:09]} {[%emt 00:00:05]} Re7 {[%clk
00:00:58]} {[%emt 00:00:06]} 54. Rxe7+ {[%clk 00:00:11]} {[%emt 00:00:03]} Qxe7
{[%clk 00:01:02]} {[%emt 00:00:02]} 55. Rc2 {[%clk 00:00:13]} {[%emt 00:00:03]}
e3 {[%clk 00:00:48]} {[%emt 00:00:19]} 56. Qd4+ {[%clk 00:00:15]} {[%emt
00:00:03]} Kh6 {[%clk 00:00:42]} {[%emt 00:00:10]} 57. Qf4+ {[%clk 00:00:18]}
{[%emt 00:00:02]} g5 {[%clk 00:00:46]} {[%emt 00:00:01]} 58. Qxf5 {[%clk
00:00:22]} {[%emt 00:00:02]} e2 {[%clk 00:00:36]} {[%emt 00:00:15]} 59. Rc1
{[%clk 00:00:09]} {[%emt 00:00:17]} e1=Q {[%clk 00:00:29]} {[%emt 00:00:12]} 60.
Rxe1 {[%clk 00:00:13]} {[%emt 00:00:02]} Qxe1 {[%clk 00:00:22]} {[%emt
00:00:11]} 61. Qf8+ {[%clk 00:00:17]} {[%emt 00:00:02]} Kh5 {[%clk 00:00:20]}
{[%emt 00:00:06]} 62. g4+ {[%clk 00:00:14]} {[%emt 00:00:09]} Kh4 {[%clk
00:00:10]} {[%emt 00:00:14]} 63. Qxd6 {[%clk 00:00:17]} {[%emt 00:00:02]} Qe2+
{[%clk 00:00:09]} {[%emt 00:00:07]} 64. Kg1 {[%clk 00:00:21]} {[%emt 00:00:01]}
Qe1+ {[%clk 00:00:10]} {[%emt 00:00:04]} 65. Kg2 {[%clk 00:00:25]} Qe2+ {[%clk
00:00:11]} {[%emt 00:00:04]} 66. Kg1 {[%clk 00:00:28]} {[%emt 00:00:02]} Qe3+
{[%clk 00:00:10]} {[%emt 00:00:06]} 67. Kf1 {[%clk 00:00:29]} {[%emt 00:00:04]}
Qf3+ {[%clk 00:00:10]} {[%emt 00:00:04]} 68. Ke1 {[%clk 00:00:31]} {[%emt
00:00:03]} Qe3+ {[%clk 00:00:11]} {[%emt 00:00:04]} 69. Kd1 {[%clk 00:00:35]}
{[%emt 00:00:02]} Qd3+ {[%clk 00:00:13]} {[%emt 00:00:03]} 70. Ke1 {[%clk
00:00:36]} {[%emt 00:00:04]} Kxg4 {[%clk 00:00:08]} {[%emt 00:00:10]} 71. Qe6+
{[%clk 00:00:32]} {[%emt 00:00:09]} Kf4 {[%clk 00:00:09]} {[%emt 00:00:03]} 72.
Qf6+ {[%clk 00:00:16]} {[%emt 00:00:21]} Kg4 {[%clk 00:00:08]} {[%emt
00:00:06]} 73. Qe6+ {[%clk 00:00:18]} {[%emt 00:00:04]} Kf4 {[%clk 00:00:07]}
{[%emt 00:00:05]} 74. Qf7+ {[%clk 00:00:12]} {[%emt 00:00:11]} Kg4 {[%clk
00:00:06]} {[%emt 00:00:05]} 75. Qd7+ {[%clk 00:00:14]} {[%emt 00:00:05]} Kf4
{[%clk 00:00:08]} {[%emt 00:00:03]} 76. Qd6+ {[%clk 00:00:15]} {[%emt
00:00:04]} Kg4 {[%clk 00:00:07]} {[%emt 00:00:06]} 77. Qe6+ {[%clk 00:00:10]}
{[%emt 00:00:10]} Kf4 {[%clk 00:00:11]} {[%emt 00:00:01]} 78. d6 {[%clk
00:00:14]} {[%emt 00:00:02]} Qb1+ {[%clk 00:00:11]} {[%emt 00:00:04]} 79. Ke2
{[%clk 00:00:16]} {[%emt 00:00:03]} Qc2+ {[%clk 00:00:13]} {[%emt 00:00:03]} 80.
Ke1 {[%clk 00:00:19]} {[%emt 00:00:02]} Qb1+ {[%clk 00:00:15]} {[%emt
00:00:03]} 81. Kd2 {[%clk 00:00:14]} {[%emt 00:00:10]} Qb2+ {[%clk 00:00:18]}
{[%emt 00:00:02]} 82. Kd3 {[%clk 00:00:14]} {[%emt 00:00:05]} Qb1+ {[%clk
00:00:17]} {[%emt 00:00:05]} 83. Kd2 {[%clk 00:00:11]} {[%emt 00:00:09]} Qb2+
{[%clk 00:00:21]} {[%emt 00:00:02]} 84. Kd1 {[%clk 00:00:12]} {[%emt 00:00:03]}
Qd4+ {[%clk 00:00:16]} {[%emt 00:00:10]} 85. Ke2 {[%clk 00:00:08]} {[%emt
00:00:09]} Qb2+ {[%clk 00:00:14]} {[%emt 00:00:07]} 86. Kd1 {[%clk 00:00:11]}
Qd4+ {[%clk 00:00:17]} {[%emt 00:00:02]} 87. Ke2 {[%clk 00:00:15]} {[%emt
00:00:01]} 1/2-1/2